Cogmind - Beta 16.1 @@@ ROGUE MODE // 2026.05.02 @ 09:46:53 Player: SuperSwiss Result: Self-destructed Performance ------------- Evolutions (1) 500 Regions Visited (2) 400 Robots Destroyed (16) 80 Value Destroyed (210) 210 Prototype IDs (1) 20 Alien Tech Used (0) 0 Bonus (0) 0 TOTAL SCORE: 1210 Bonus ------- None Cogmind --------- Core Integrity 400/400 Matter 78/300 Energy 125/125 System Corruption 5% Temperature Cool (0) Movement Rolling (135) Ox3 Location -9/Materials Parts ------- > --- POWER (1) -------- Light Ion Engine > --- PROPULSION (3) --- Light Treads Wheel Compact Wheel > --- UTILITY (3) ------ Huge Storage Unit Structural Scanner Seismic Detector > --- WEAPON (2) ------- Heavy Assault Rifle Heavy Assault Rifle > --- INVENTORY (25) --- Light Ion Engine Light Treads Wheel Small Storage Unit Large Storage Unit Medium Matter Pod (0) Hardened Light Armor Plating Assault Rifle Light Assault Rifle Light Assault Rifle Light Assault Rifle Heavy Assault Rifle Heavy Assault Rifle Plasma Cutter Peak State ------------ > --- POWER ------------ Heavy Ion Engine > --- PROPULSION ------- Light Treads Wheel Compact Wheel > --- UTILITY ---------- Huge Storage Unit Structural Scanner Seismic Detector > --- WEAPON ----------- Heavy Assault Rifle Heavy Assault Rifle > --- INVENTORY -------- Light Ion Engine Light Treads Wheel Small Storage Unit Large Storage Unit Medium Matter Pod Assault Rifle Light Assault Rifle Light Assault Rifle Light Assault Rifle Heavy Assault Rifle Heavy Assault Rifle Plasma Cutter [Rating: 14] Favorites ----------- Power Light Ion Engine Engine Light Ion Engine Propulsion Wheel Treads Light Treads Wheel Wheel Utility Seismic Detector Device Seismic Detector Storage Huge Storage Unit Weapon Heavy Assault Rifle Ballistic Gun Heavy Assault Rifle Build | -11 -10 -9 ------- Run | Yrd Mat Mat Slots Evolved 2 | . . 2 Power . | . . . Propulsion 1 | . . 1 Utility 1 | . . 1 Weapon . | . . . Parts Attached 21 | 7 11 3 Power 3 | 1 . 2 Engine 3 | 1 . 2 Core . | . . . Reactor . | . . . Propulsion 7 | 2 4 1 Treads 2 | . 2 . Leg . | . . . Wheel 5 | 2 2 1 Hover . | . . . Flight . | . . . Utility 6 | 2 4 . Device 3 | 1 2 . Storage 3 | 1 2 . Processor . | . . . Hackware . | . . . Protection . | . . . Artifact . | . . . Weapon 5 | 2 3 . Energy Gun . | . . . Energy Cannon . | . . . Ballistic Gun 5 | 2 3 . Ballistic Cannon . | . . . Launcher . | . . . Special Weapon . | . . . Impact Weapon . | . . . Slashing Weapon . | . . . Piercing Weapon . | . . . Special Melee Weapon . | . . . Unidentified Prototypes 1 | . . 1 Parts Lost 2 | . 2 . Power . | . . . Propulsion 2 | . 2 . Utility . | . . . Weapon . | . . . Highest Loss Streak 1 | . 1 . To Critical Strikes . | . . . Average Backups 10 | 2 11 13 Power . | . 1 1 Propulsion 2 | 1 3 2 Utility 2 | . 2 3 Weapon 3 | . 4 6 Tool/Special . | . . . Unused Backups 6 | . . 6 Power . | . . . Propulsion . | . . . Utility 1 | . . 1 Weapon 4 | . . 4 Tool/Special 1 | . . 1 Average Slot Usage (%) 99 | . 99 98 Engine 13 | . 13 11 Treads 7 | . 6 11 Wheel 21 | . 21 22 Device 14 | . 14 20 Storage 13 | . 14 11 Ballistic Gun 27 | . 27 22 Peak Build Rating 14 | 7 10 14 Average Rating 8 | 5 8 12 On Entrance 5 | . 7 10 Avg Prop Armor Cover (%) 10 | . 11 10 Naked Turns . | . . . Heaviest Build 91 | 12 90 91 Greatest Support 26 | 20 20 26 Greatest Overweight (x) 8 | . 8 3 Average Overweight (x) 2 | . 2 3 Largest Inventory Capacity 25 | 8 25 25 Average Capacity 17 | 7 17 25 Most Carried 15 | 5 15 14 Average Carried 10 | 2 11 13 Final Capacity 25 | 8 25 25 Final Carried 15 | 5 15 14 Class Distribution -------------------- 100% | Mutant Dominant Class ---------------- Mutant | -10/Materials Mutant | -9/Materials Resources | -11 -10 -9 ----------- Run | Yrd Mat Mat Matter Collected 494 | 302 192 . Remotely . | . . . Salvage Created 349 | 122 227 . Parts 34 | 10 24 . Haulers Intercepted . | . . . Recyclers Shooed . | . . . Parts Field Recycled . | . . . Retrieved Matter . | . . . Parts Self-Destructed . | . . . Prevented . | . . . Parts Restored . | . . . Kills | -11 -10 -9 ------- Run | Yrd Mat Mat Combat Hostiles Destroyed 11 | . 11 . Guns 11 | . 11 . Classes Destroyed 6 | 2 4 . Tunneler 2 | 2 . . Recycler 1 | 1 . . Operator 1 | . 1 . Watcher 1 | . 1 . Swarmer 9 | . 9 . Grunt 2 | . 2 . Best Kill Streak 6 | 3 6 . Combat Bots Only 6 | . 6 . Max Kills in Single Turn 2 | 1 2 . Gunslinging . | . . . Exploded . | . . . Melee . | . . . Uniques/NPCs Destroyed . | . . . Combat | -11 -10 -9 -------- Run | Yrd Mat Mat Hostile Shots Fired 61 | . 61 . Missed 9 | . 9 . Hits 52 | . 52 . Projectile 52 | . 52 . Damage Taken 421 | . 421 . Core 95 | . 95 . Absorbed by Shields . | . . . Core Remaining (%) 81 | 100 62 . Volleys Fired 41 | 8 33 . Largest 2 | 2 2 . Hottest 46 | 40 46 . Shots Fired 82 | 16 66 . Gun 82 | 16 66 . Cannon . | . . . Launcher . | . . . Special . | . . . Kinetic 82 | 16 66 . Thermal . | . . . Explosive . | . . . Electromagnetic . | . . . Robot Hit Streak 8 | 7 8 . Robot Miss Streak 6 | 1 6 . Penetration Max . | . . . Secondary Targets . | . . . Shots Hit Robots 44 | 11 33 . Core Hits 19 | 4 15 . Critical Kills . | . . . Critical Parts Destroyed . | . . . Critical Strikes . | . . . Melee Attacks . | . . . Impact . | . . . Slashing . | . . . Piercing . | . . . Sneak Attacks . | . . . Combat Hostiles . | . . . Follow-up Attacks . | . . . Damage Inflicted 556 | 109 447 . Guns 556 | 109 447 . Cannons . | . . . Explosions . | . . . Melee . | . . . Ramming . | . . . Kinetic 556 | 109 447 . Thermal . | . . . Explosive . | . . . Electromagnetic . | . . . Impact . | . . . Slashing . | . . . Piercing . | . . . Highest Corruption 5 | . . 5 Average Corruption 5 | . . 5 Corruption Purged . | . . . Corruption Blocked . | . . . Effects 1 | . . 1 Matter Fused 1 | . . 1 Overload Shots . | . . . Overflow Damage . | . . . Projectiles . | . . . Explosions . | . . . Melee . | . . . Knockbacks . | . . . Impact . | . . . Kinetic . | . . . Secondary . | . . . Self-Inflicted Damage . | . . . Shots . | . . . Rammed . | . . . Targets Rammed . | . . . Kicked . | . . . Crushed . | . . . Highest Temperature 6 | . 6 . Average Temperature 6 | . 6 . Received Heat Transfer 18 | . 18 . Siege Activations . | . . . Martial Activations . | . . . Shielding Activations . | . . . Robots Disrupted . | . . . Combat Hostiles . | . . . Robots Corrupted . | . . . Combat Hostiles . | . . . Parts Fried . | . . . Impact Corruptions . | . . . Robots Melted . | . . . Combat Hostiles . | . . . Parts Melted . | . . . Heat Transferred . | . . . Parts Sabotaged . | . . . Parts Stolen . | . . . Parts Stripped . | . . . Power Chain Reactions . | . . . Alert | -11 -10 -9 ------- Run | Yrd Mat Mat Maximum Alert Level . | . . . Low Security (%) 100 | 100 100 100 Level 1 . | . . . Level 2 . | . . . Level 3 . | . . . Level 4 . | . . . Level 5 . | . . . High Security . | . . . Max Security . | . . . Peak Influence 170 | 10 170 26 Initial 26 | . . 26 Average 65 | 1 78 17 Influence Increases 347 | 15 332 . Destroy 0b10 Robot/C 220 | . 220 . Destroy 0b10 Robot/NC 25 | 15 10 . Destroy Leader 42 | . 42 . Lose Combat Pursuer 60 | . 60 . Influence Decreases 341 | 15 269 57 Entered New Map 37 | . . 37 Time Decay 284 | 15 249 20 Lost Part 20 | . 20 . Squads Dispatched 2 | . 2 . Investigation . | . . . Extermination . | . . . Reinforcement 2 | . 2 . Assault . | . . . Garrison . | . . . Intercept . | . . . Searches Triggered . | . . . Construction Impeded . | . . . Haulers Reinforced . | . . . Active Scanning Responses . | . . . Cargo Convoy Interrupts . | . . . Stealth | -11 -10 -9 --------- Run | Yrd Mat Mat Distress Signals 5 | . 5 . Communications Jammed . | . . . Distress Signals . | . . . Times Spotted 21 | . 21 . Peak Tracking Total 7 | . 7 . Tactical Retreats 3 | . 3 . Traps | -11 -10 -9 ------- Run | Yrd Mat Mat Traps Triggered 1 | . 1 . Indirectly . | . . . Trap Hack Attempts . | . . . Triggered . | . . . Disarmed . | . . . Reprogrammed . | . . . Reused . | . . . Traps Extracted . | . . . Installed . | . . . Triggered . | . . . Machines | -11 -10 -9 ---------- Run | Yrd Mat Mat Machines Disabled . | . . . Max in Single Turn . | . . . Machines Repaired . | . . . Machines Dismantled . | . . . Machines Sabotaged . | . . . Overloaded Fab Kills . | . . . Hacking | -11 -10 -9 --------- Run | Yrd Mat Mat Machines Accessed 3 | . 3 . Terminals 3 | . 3 . Fabricators . | . . . Repair Stations . | . . . Recycling Units . | . . . Scanalyzers . | . . . Garrison Access . | . . . Total Hacks 8 | . 8 . Successful 2 | . 2 . Failed 6 | . 6 . Catastrophic . | . . . Database Lockouts . | . . . Manual 8 | . 8 . Terminals 8 | . 8 . Fabricators . | . . . Repair Stations . | . . . Recycling Units . | . . . Scanalyzers . | . . . Garrison Access . | . . . Terminal Hacks 1 | . 1 . Hauler Manifests 1 | . 1 . Fabricator Hacks . | . . . Repair Station Hacks . | . . . Recycling Unit Hacks . | . . . Scanalyzer . | . . . Garrison Access Hacks . | . . . Unauthorized Hacks 1 | . 1 . Terminals 1 | . 1 . Skim 1 | . 1 . Fabricators . | . . . Repair Stations . | . . . Recycling Units . | . . . Scanalyzers . | . . . Garrison Access . | . . . Data Cores Recovered . | . . . Used . | . . . Hacking Detections 3 | . 3 . Full Trace Events . | . . . Feedback Events . | . . . Feedback Blocked . | . . . Robot Schematics Acquired . | . . . Robots Built . | . . . Authchips . | . . . Time . | . . . Total Robot Build Rating . | . . . Part Schematics Acquired . | . . . Parts Built . | . . . Authchips . | . . . Time . | . . . Total Part Build Rating . | . . . Part Studies Acquired . | . . . Parts Repaired . | . . . Time . | . . . Parts Recycled . | . . . Recycled Matter . | . . . Retrieved Matter . | . . . Retrieved Components . | . . . Parts Scanalyzed . | . . . Part Schematics Acquired . | . . . Parts Damaged . | . . . Bothacking | -11 -10 -9 ------------ Run | Yrd Mat Mat Used RIF Installer . | . . . Robots Hacked . | . . . Non-combat . | . . . Combat . | . . . Robot Hacks Applied . | . . . Relay Couplers Released . | . . . Fabnet Peak Effective % . | . . . Robots Rewired . | . . . Allies Hacked . | . . . Hacks Repelled . | . . . Allies | -11 -10 -9 -------- Run | Yrd Mat Mat Total Allies . | . . . Largest Group . | . . . Highest-Rated Group . | . . . Highest-Rated Ally . | . . . Total Orders . | . . . Ally Attacks . | . . . Total Damage . | . . . Kills . | . . . Allies Corrupted . | . . . Allies Melted . | . . . Intel | -11 -10 -9 ------- Run | Yrd Mat Mat Active Infowar (turns) 712 | 14 646 52 Structural 152 | . 103 49 Seismic 609 | 14 543 52 Robot Analysis Total . | . . . Derelict Logs Recovered . | . . . Drone Launches . | . . . Drone Recoveries . | . . . Exploration | -11 -10 -9 ------------- Run | Yrd Mat Mat Turns Passed 787 | 89 646 52 Spaces Moved 464 | 59 384 21 Core 1 | 1 . . Treads . | . . . Legs . | . . . Wheels 463 | 58 384 21 Hover . | . . . Flight . | . . . Fastest Speed 50 | 50 80 135 Average Speed 119 | 79 124 135 Slowest Speed 200 | 80 200 135 Overloaded Moves . | . . . Propulsion Burnouts . | . . . Robots Hopped . | . . . Potential Cave-ins . | . . . Cave-ins Triggered . | . . . Exploration Rate (%) 28 | 4 77 5 Regions Visited 2 Branch Regions . Pre-discovered Areas . | . . . Known Exits Taken . | . . . Unknown Exits Taken 2 | 1 1 . Scrap Searched . | . . . Spaces Dug . | . . . Terrain Destroyed . | . . . Melee . | . . . Projectile . | . . . AOE . | . . . Terrain Rammed . | . . . Walls Destroyed . | . . . Machines Disabled . | . . . Actions | -11 -10 -9 --------- Run | Yrd Mat Mat Total 609 | 82 486 41 Wait 57 | 4 42 11 Move 462 | 58 383 21 Hop . | . . . Pick Up 15 | 5 9 1 Fast Attach 10 | 7 3 . Attach 4 | . 2 2 Detach . | . . . Swap 18 | . 12 6 Drop 2 | . 2 . Fire 41 | 8 33 . Melee . | . . . Ram . | . . . Kick . | . . . Crush . | . . . Escape Stasis . | . . . Rewire . | . . . Trap . | . . . Miscellaneous . | . . . Route ------- -11/Scrapyard -10/Materials (discovered 4 exits: [*Mat x2] / [*Min x2]) -9/Materials History --------- Turn | Location | Event 2 | -11/Scrapyard | Met Revision 17 27 | -11/Scrapyard | Discovered new exit (range 16) 90 | -11/Scrapyard | Entered Materials 147 | -10/Materials | Discovered new exit (range 13) 311 | -10/Materials | Discovered new exit (range 16) 358 | -10/Materials | Build established: Mutant 534 | -10/Materials | Discovered new exit (range 5) 693 | -10/Materials | Discovered new exit (range 15) 736 | -10/Materials | Entered another Materials area 736 | -9/Materials | Evolved 2 slots: Propulsion x1, Utility x1 788 | -9/Materials | Self-destructed Last Messages --------------- 00672_ Destroyed Lgt. Ion Engine. 00682_ K-01 Serf collects debris. 00683_ U-05 Engineer works on Material Processor. 00693_ EXIT=FOUND 00700_ Destroyed Hover Unit. 00703_ W-16 Scout destroyed. 00710_ K-01 Serf collects debris. PARAMETERS=PROPULSION+1,UTILITY+1 LOCATION=UNKNOWN GOAL=ESCAPE 00740_ T-07 Excavator is excavating. 00763_ Acquired Prototype Engine. 00763_ Identified Hvy. Ion Engine. 00763_ Faulty integration damages Seismic Detector (-1). 00765_ Acquired Lgt. Ion Engine. 00766_ Acquired Faulty Hvy. Ion Engine. 00766_ Faulty integration triggers system corruption (+5). 00768_ Acquired Lgt. Ion Engine. 00774_ System corrupted: Matter fused (-8). 00784_ Acquired Hrd. Light Armor Plating. Map ----- +----------------------------------------------------+ | ??## """ ##??????????? | | ??## """ ##??????????? | | ??## """ ##??????????? | | ??## """ ## ? ???????? | | ??## ## ??????? | | ??## ???? | | ??## """ ???? | | ??#### """ ????? | | ??## # """ #####????? | | ??## """ #####????? | | ??## # ##???????? | | ??#### ##???????? | | ??#### """ ##???????? | | ????## """ ##???????? | | ????## """ ##???????? | | ????## """ ##???????? | | ###### ##???????? | | ###### ##???????? | | # + ##???????? | | # # ###########???????? | | # * # ###########???????? | | # # ##????????????????? | | # #+##????????????????? | | # ""# ????????????????? | | # T"# ??????????????????? | | #@ ""# ??????????????????? | | # # ??????????????????? | | ###### ??????????????????? | | ###### ??????????????????? | | ?????????????????????????? | | ?????????????????????????? | | ?????????????????????????? | | ?????????????????????????? | | ?????????????????????????? | | ?????????????????????????? | | ?????????????????????????? | | ?????????????????????????? | | ?????????????????????????? | | ?????????????????????????? | | ?????????????????????????? | | ?????????????????????????? | | ?????????????????????????? | | ?????????????????????????? | | ?????????????????????????? | | ?????????????????????????? | | ?????????????????????????? | | ?????????????????????????? | | ?????????????????????????? | | ?????????????????????????? | | ?????????????????????????? | +----------------------------------------------------+ Best States ------------- Heat Dissipation 28 Energy Generation 10 Energy Capacity 125 Matter Stores 300 Matter Capacity 300 Sight Range 16 Terrain Scan Density 10 Evasion (%) 44 Recoil Reduction 1 Item Schematics ----------------- None Robot Schematics ------------------ None Fabricated ------------ Nothing Repaired ---------- Nothing Studied --------- None Alien Tech Used ----------------- None Achievements -------------- You Again Challenges ------------ None Game ------ Seed PoweredVariableNukerbomber Manual? 0 Play Time 00:12:43 Cumulative 127.0 hours Start 2026.05.02 @ 09:35:45 End 2026.05.02 @ 09:46:53 Sessions 1 Manual Loads 0 Difficulty Rogue Special Mode None Game No. 107 Rogue 104 Adventurer 0 Explorer 3 Win Type - Total 1 Types 1/0/0/0/0/0/0/0/0/0 Lore% 25 Gallery% 44 Achievement% 26 Wizard Run 0 Options --------- Layout 0 ASCII 0 Keyboard 0 Movement Numpad Keybinds 0 Fullscreen 2 Font 16/SmallcapsGlow Map View 88x55 Zoom Use 0% Tactical HUD 1 Map Filters NONE Filters NONE Steam 1 RUN: 7e47be5d-187a-4b57-ac49-d09ba71d2fe4